[Event "CCT Julius Baer-D3 2024"]
[Site "Online"]
[Date "2024.09.29"]
[Round "4"]
[White "Caruana, Fabiano"]
[Black "Keymer, Vincent"]
[Result "1-0"]
[ECO "A29"]
[WhiteElo "2798"]
[BlackElo "2730"]
[Annotator "TA"]
[PlyCount "55"]
[EventDate "2024.09.25"]
[EventType "swiss"]
[EventCountry "NET"]
[SourceTitle "playchess.com"]
[Source "ChessBase"]
[SourceQuality "1"]
[TimeControl "600+2"]

{[%evp 10,55,17,17,10,0,16,-23,-15,-22,-13,-30,99,92,239,238,217,230,235,212,163,224,224,212,234,204,233,246,353,356,328,353,370,358,473,494,456,70,66,69,613,602,676,666,2341,2369,29998,29999]} 1. c4 {[%emt 0:00:03]} Nf6 {[%emt 0:00:04]} 2. Nc3 {[%emt 0:00:02]} e5 {[%emt 0:00:01]} 3. Nf3 {[%emt 0:00:01]} Nc6 {[%emt 0:00:01]} 4. g3 {[%emt 0:00:03]} Bb4 {[%emt 0:00:02]} 5. Bg2 {[%emt 0:00:02]} O-O {[%emt 0:00:06]} 6. Nd5 {[%emt 0:00:03]} e4 {[%emt 0:00:17] And now ...Nxd5 would win.} 7. Nh4 $1 {[%emt 0:00:03][%cal Bf3h4,Bh4f5,Bf5h6][%mdl 32]} d6 {[%emt 0:00:05]} 8. O-O {[%emt 0:00:03]} g5 {[%emt 0:00:03] Black has an edge.} 9. d4 $1 {[%emt 0:00:02]} h6 {[%emt 0:00:05]} 10. g4 {[%emt 0:00:03]} Re8 {[%emt 0:02:24]} (10... gxh4 $11 {keeps the balance.} 11. h3 Nxd5 12. cxd5 Ne7) 11. Nf5 $36 {[%emt 0:00:05][%mdl 2048] White is in control.} Nxg4 {[%emt 0:01:19]} (11... Bxf5 $16 12. gxf5 Rc8) 12. f3 $18 {[%emt 0:00:40]} exf3 {[%emt 0:00:37]} 13. exf3 {[%emt 0:00:14]} Nxh2 {[%emt 0:00:20]} 14. Nxh6+ {[%emt 0:00:12]} Kg7 {[%emt 0:00:02]} 15. Kxh2 {[%emt 0:00:16]} Rh8 {[%emt 0:00:15]} 16. a3 {[%emt 0:01:27]} (16. Bxg5 $2 Qxg5 17. Kg1 Qxh6 $19 (17... Rxh6 $2 18. f4 $19)) 16... Ba5 {[%emt 0:00:39]} 17. b4 {[%emt 0:00:05]} (17. Bxg5 $2 Qxg5 18. Kg1 Rxh6 $19) 17... Rxh6+ {[%emt 0:00:10]} 18. Kg1 {[%emt 0:00:36]} Bh3 {[%emt 0:00:03]} (18... Rh5 $142 19. bxa5 Rb8) 19. Ra2 {[%emt 0:00:23]} (19. bxa5 Bxg2 20. Kxg2 Qd7 21. Bxg5 (21. Rh1 Rxh1 22. Qxh1 Rh8 $16) 21... Rg6 $18) 19... Bb6 {[%emt 0:00:33] [#]} 20. c5 $1 {[%emt 0:00:10][%cal Bc4c5,Bc5b6][%mdl 32]} Be6 {[%emt 0:00:03] [#]} 21. f4 $1 {[%emt 0:00:08]} gxf4 {[%emt 0:00:02][%cal Oc6e7]} 22. cxb6 {[%emt 0:00:44]} Qh4 {[%emt 0:00:19] Hoping for ...Qh2+.} 23. Rxf4 $2 {[%emt 0:01:52]} (23. Bxf4 $18 Rg6 24. Ne3 (24. Nxc7 Bxa2 25. Nxa8 Bd5 $17)) 23... Qh2+ $14 {[%emt 0:00:03]} 24. Kf1 {[%emt 0:00:00]} Rg6 $2 {[%emt 0:00:28][%mdl 8192]} (24... Qh1+ $14 25. Bxh1 Rxh1+ 26. Ke2 Rxd1 27. Kxd1 Bxd5 28. Rg4+ Kf6 29. Rf2+ Ke6) 25. Qf3 $18 {[%emt 0:00:44]} (25. bxc7 Bxd5 26. Qc2 Re8 $11 (26... Bxg2+ 27. Qxg2 Qxg2+ 28. Rxg2 $17) (26... Bxa2 27. Qxa2 Qxg2+ 28. Qxg2 $11) (26... Bxg2+ 27. Qxg2 Qxg2+ 28. Rxg2 $17) (26... Bxa2 27. Qxa2 f6 28. Qe2 $17)) 25... Rg3 {[%emt 0:01:32]} 26. Qe4 {[%emt 0:00:03] aiming for Rh4.} Re8 {[%emt 0:00:52]} 27. Rh4 {[%emt 0:00:48]} Rh3 {[%emt 0:00:19]} 28. Qh7+ {[%emt 0:00:03] Weighted Error Value: White=0.18 (very precise) /Black=0.78.  Loses game:     	---       	Black=1      Missed win:     	White=1     	---        Mistake:       	---       	Black=3      Inaccurate:     	White=1     	Black=1      OK:         	White=3     	Black=8      Best:        	White=6     	Black=2      Strong:       	White=4     	---} 1-0

[Event "CCT Julius Baer-D3 2024"]
[Site "Online"]
[Date "2024.09.29"]
[Round "4"]
[White "Keymer, Vincent"]
[Black "Caruana, Fabiano"]
[Result "1/2-1/2"]
[ECO "D15"]
[WhiteElo "2730"]
[BlackElo "2798"]
[Annotator "TA"]
[PlyCount "147"]
[EventDate "2024.09.25"]
[EventType "swiss"]
[EventCountry "NET"]
[SourceTitle "playchess.com"]
[Source "ChessBase"]
[SourceQuality "1"]
[TimeControl "600+2"]

{[%evp 77,147,183,189,164,173,136,248,250,258,248,259,231,329,269,404,362,481,286,394,318,314,0,0,0,396,393,446,0,8,0,0,0,0,-583,-579,-533,-546,-536,-525,-900,-920,-1016,-669,-1008,-805,-748,-725,-594,-743,-590,0,-8,8,8,8,8,8,8,8,8,8,8,8,8,8,8,8,8,8,0,8,-8]} 1. c4 {[%emt 0:00:03]} Nf6 {[%emt 0:00:07]} 2. Nf3 {[%emt 0:00:03]} c6 {[%emt 0:00:02]} 3. Nc3 {[%emt 0:00:01]} d5 {[%emt 0:00:01]} 4. e3 {[%emt 0:00:01]} a6 {[%emt 0:00:04]} 5. d4 {[%emt 0:00:02]} Bf5 {[%emt 0:00:02]} 6. Nh4 {[%emt 0:00:06] D15: Slav Defence: 4 Nc3 a6 and gambit lines after 4 Nc3 dxc4.} Bc8 {[%emt 0:00:03]} 7. h3 {[%emt 0:00:15]} e6 {[%emt 0:00:11]} 8. Nf3 {[%emt 0:00:01]} Nbd7 {[%emt 0:00:13]} 9. Qc2 {[%emt 0:00:20]} Bd6 {[%emt 0:00:48]} 10. Be2 {[%emt 0:00:15]} dxc4 {[%emt 0:00:18]} 11. a4 $146 {[%emt 0:00:01]} ({Predecessor:} 11. Bxc4 b5 12. Bd3 Bb7 13. a4 Rc8 14. O-O O-O 15. Qe2 Rc7 16. Rd1 b4 17. Ne4 Nxe4 18. Bxe4 Qa8 19. b3 {½-½ Giaccio,A (2390)-Juarez,A (2295) Buenos Aires CC Jaque Mate op 1995}) 11... O-O {[%emt 0:00:28]} 12. O-O {[%emt 0:00:07]} e5 {[%emt 0:00:16]} 13. Bxc4 {[%emt 0:00:14]} exd4 {[%emt 0:00:13]} 14. Nxd4 {[%emt 0:01:00]} Ne5 {[%emt 0:00:01]} 15. Be2 {[%emt 0:00:04]} Ng6 {[%emt 0:00:04]} 16. Rd1 {[%emt 0:01:05]} Qe7 {[%emt 0:00:06]} 17. Nf5 {[%emt 0:00:21]} Bxf5 {[%emt 0:00:03]} 18. Qxf5 {[%emt 0:00:01]} Rad8 {[%emt 0:00:05]} 19. Bd2 {[%emt 0:00:23]} h6 {[%emt 0:01:24]} 20. Be1 {[%emt 0:00:55]} Nh4 {[%emt 0:01:12]} 21. Qc2 {[%emt 0:00:03]} Qe6 {[%emt 0:00:04]} 22. Rd3 {[%emt 0:02:30]} Bc7 {[%emt 0:01:25]} 23. Rad1 {[%emt 0:00:04]} Rxd3 {[%emt 0:00:01]} 24. Qxd3 {[%emt 0:00:12]} Rd8 {[%emt 0:00:44]} 25. Qc4 {[%emt 0:00:17]} Rxd1 {[%emt 0:00:02]} 26. Nxd1 {[%emt 0:00:02]} Qxc4 {[%emt 0:00:19]} 27. Bxc4 {[%emt 0:00:03]} Ng6 {[%emt 0:00:01]} 28. f4 {[%emt 0:00:18]} Ne7 {[%emt 0:00:22]} 29. Kf2 {[%emt 0:00:06]} b5 {[%emt 0:00:19]} 30. Bd3 {[%emt 0:00:12]} Nd7 {[%emt 0:00:35]} 31. axb5 {[%emt 0:00:14]} cxb5 {[%emt 0:00:00]} 32. Kf3 {[%emt 0:00:02]} Nc5 {[%emt 0:00:05]} 33. Bb1 {[%emt 0:00:38]} Nd5 {[%emt 0:00:05]} 34. g3 {[%emt 0:00:07]} Nb6 {[%emt 0:00:22]} 35. e4 {[%emt 0:00:03]} Nc4 {[%emt 0:00:04]} 36. e5 {[%emt 0:00:19]} Bb6 {[%emt 0:00:24]} 37. Ba2 {[%emt 0:00:04]} Nd3 {[%emt 0:00:04]} 38. Bc3 {[%emt 0:00:05]} Na5 {[%emt 0:00:29] [#]} 39. Bd5 $1 {[%emt 0:00:15]} Nc4 {[%emt 0:00:10]} 40. Bxc4 {[%emt 0:00:08]} bxc4 {[%emt 0:00:00]} 41. Ke4 {[%emt 0:00:00]} g5 {[%emt 0:00:04]} (41... Bg1 $16 {keeps fighting.} 42. Kf3 Kh7) 42. f5 $18 {[%emt 0:00:05]} h5 {[%emt 0:00:01]} 43. g4 {[%emt 0:00:10]} h4 {[%emt 0:00:01]} 44. Bd2 {[%emt 0:00:01]} Bc7 {[%emt 0:00:03]} (44... Bd8 {was worth a try.} 45. f6 Bc7) 45. e6 {[%emt 0:00:10]} fxe6 {[%emt 0:00:00]} (45... Bd8 {was called for.} 46. b3 fxe6 47. fxe6 (47. bxc4 Nc5+ 48. Kf3 Kf7 $14) 47... Nf4 (47... Nc5+ $2 48. Kd5 $18)) 46. fxe6 $18 {[%emt 0:00:00]} Bf4 {[%emt 0:00:01]} 47. Bc3 {[%emt 0:00:05]} (47. Bxf4 $142 Nxf4 48. Ke5) 47... Bc1 {[%emt 0:00:01]} 48. Kf5 {[%emt 0:00:03]} Kf8 {[%emt 0:00:01] [#]} 49. Kg6 $2 {[%emt 0:00:03]} (49. Bf6 $1 $18) 49... Ke7 $11 {[%emt 0:00:03]} 50. Kf5 {[%emt 0:00:01]} Ke8 $2 {[%emt 0:00:02][%mdl 8192]} (50... Kf8 $1 $11) 51. Bf6 $18 {[%emt 0:00:01]} a5 {[%emt 0:00:01]} 52. Bc3 $2 {[%emt 0:00:04]} ({White should try} 52. Nc3 $18) 52... a4 {[%emt 0:00:01]} 53. Bf6 {[%emt 0:00:01]} Bd2 {[%emt 0:00:06]} 54. Bd4 {[%emt 0:00:02]} Nf4 {[%emt 0:00:02]} 55. Ke4 $2 {[%emt 0:00:03][%mdl 8192]} (55. Kxg5 $2 {loses.} Nxe6+ (55... Nxh3+ 56. Kxh4 Ng5 57. Kh5 $11) 56. Kf6 Nxd4 $19) (55. Nf2 $1 $11 {and White is okay.}) 55... Nxh3 $19 {[%emt 0:00:01]} (55... Nxe6 56. Bf6 $19) 56. Kd5 {[%emt 0:00:01]} Nf4+ {[%emt 0:00:01]} 57. Kxc4 {[%emt 0:00:00]} h3 {[%emt 0:00:01]} (57... Nxe6 $2 58. Bb6 $19) 58. Bg1 {[%emt 0:00:01]} Ne2 {[%emt 0:00:01]} 59. Bh2 {[%emt 0:00:03]} Bf4 {[%emt 0:00:00]} 60. Bxf4 {[%emt 0:00:04]} gxf4 {[%emt 0:00:01]} 61. Nf2 {[%emt 0:00:02]} h2 {[%emt 0:00:01]} 62. g5 {[%emt 0:00:01]} Ke7 {[%emt 0:00:02]} 63. Kd5 {[%emt 0:00:01]} Ng3 $2 {[%emt 0:00:08]} ({Better is} 63... f3 $19 {...Nf4+ would now be deadly.} 64. Nh1 Nf4+ 65. Ke4 f2 (65... Nxe6 66. Kxf3 Nxg5+ 67. Kg2 $11) 66. Nxf2 Nh3 (66... Nxe6 67. Kf3 $11)) 64. g6 $11 {[%emt 0:00:01]} Kf6 {[%emt 0:00:01]} (64... Kf8 {is interesting.} 65. Ke5 h1=Q 66. Nxh1 Nxh1 67. Kxf4 Nf2) 65. Ng4+ {[%emt 0:00:04]} Kxg6 {[%emt 0:00:03]} 66. Nxh2 {[%emt 0:00:01]} Kf6 {[%emt 0:00:00]} 67. Ng4+ {[%emt 0:00:03]} Ke7 {[%emt 0:00:02]} 68. Ne5 {[%emt 0:00:01]} Nf5 {[%emt 0:00:02]} 69. Ng6+ {[%emt 0:00:01]} Kf6 {[%emt 0:00:03]} 70. Nxf4 {[%emt 0:00:00]} Ne3+ {[%emt 0:00:01]} 71. Kd4 {[%emt 0:00:03]} (71. Kc5 $5 Nf5 $8 72. Nd5+ Kxe6 73. Nb6 $11) 71... Nd1 {[%emt 0:00:02]} 72. Nd5+ {[%emt 0:00:06]} Kxe6 {[%emt 0:00:02]} 73. Nc3 {[%emt 0:00:01]} Nxb2 {[%emt 0:00:01]} 74. Nxa4 {[%emt 0:00:00]} 1/2-1/2

[Event "CCT Julius Baer-D3 2024"]
[Site "Online"]
[Date "2024.09.29"]
[Round "4"]
[White "Korobov, Anton"]
[Black "Moussard, Jules"]
[Result "0-1"]
[ECO "B86"]
[WhiteElo "2650"]
[BlackElo "2600"]
[Annotator "TA"]
[PlyCount "130"]
[EventDate "2024.09.25"]
[EventType "swiss"]
[EventCountry "NET"]
[SourceTitle "playchess.com"]
[Source "ChessBase"]
[SourceQuality "1"]
[TimeControl "600+2"]

{[%evp 46,130,27,18,29,31,46,34,35,38,63,54,64,29,27,29,24,11,14,12,35,3,65,8,120,16,20,9,70,65,69,75,67,60,121,110,112,50,62,65,184,177,197,166,196,167,183,178,350,340,372,372,354,345,414,180,125,119,832,825,739,675,450,266,231,187,182,0,369,350,340,337,554,526,554,547,12850,29937,29943,29943,29946,29944,29946,8,8,8,8]} 1. e4 {[%emt 0:00:03]} c5 {[%emt 0:00:04]} 2. Nf3 {[%emt 0:00:01]} d6 {[%emt 0:00:04]} 3. d4 {[%emt 0:00:01]} cxd4 {[%emt 0:00:00]} 4. Nxd4 {[%emt 0:00:01]} Nf6 {[%emt 0:00:00]} 5. Nc3 {[%emt 0:00:00]} a6 {[%emt 0:00:01]} 6. Bc4 {[%emt 0:00:02]} e6 {[%emt 0:00:02]} 7. a4 {[%emt 0:00:01]} Be7 {[%emt 0:00:02]} 8. O-O {[%emt 0:00:02]} O-O {[%emt 0:00:01]} 9. Be3 {[%emt 0:00:04]} Bd7 {[%emt 0:00:14]} 10. f4 {[%emt 0:00:20]} Nc6 {[%emt 0:01:44]} 11. Kh1 {[%emt 0:00:04]} Rc8 {[%emt 0:00:08]} 12. Bd3 {[%emt 0:00:10]} Qc7 {[%emt 0:01:07]} 13. Qe1 {[%emt 0:00:32]} Na5 {[%emt 0:01:10]} 14. Rd1 {[%emt 0:00:11]} Nc4 {[%emt 0:00:53]} 15. Bc1 {[%emt 0:00:04]} Rfe8 {[%emt 0:01:07]} 16. b3 {[%emt 0:00:21]} Ne3 {[%emt 0:00:19]} 17. Bxe3 {[%emt 0:00:35]} Qxc3 {[%emt 0:00:01]} 18. Qg3 {[%emt 0:01:01]} g6 {[%emt 0:00:04]} 19. f5 {[%emt 0:00:41]} exf5 {[%emt 0:00:40]} 20. exf5 {[%emt 0:00:03]} Nh5 {[%emt 0:00:01]} 21. Qf3 {[%emt 0:00:15]} Bf6 {[%emt 0:00:05]} 22. fxg6 {[%emt 0:00:30]} hxg6 {[%emt 0:00:05]} 23. Bg1 {[%emt 0:00:16]} Re7 {[%emt 0:00:15]} 24. Be4 {[%emt 0:01:17]} Qxf3 {[%emt 0:00:37]} 25. Bxf3 {[%emt 0:00:00]} Bxd4 {[%emt 0:00:49]} 26. Rxd4 {[%emt 0:00:10]} Bc6 $1 {[%emt 0:00:00]} 27. c4 {[%emt 0:00:29]} Bxf3 {[%emt 0:00:03]} 28. Rxf3 {[%emt 0:00:00]} Re6 {[%emt 0:00:08]} 29. Rfd3 {[%emt 0:00:10]} Rc6 {[%emt 0:00:03]} 30. g4 {[%emt 0:00:25]} Nf6 {[%emt 0:00:03]} 31. Kg2 {[%emt 0:00:21]} Nd7 {[%emt 0:00:04]} 32. Rf3 {[%emt 0:01:01]} Nc5 {[%emt 0:00:10]} 33. Rdf4 {[%emt 0:00:04]} Re7 {[%emt 0:00:10]} (33... Rc7 $11) 34. a5 {[%emt 0:00:09]} (34. Bd4 $14) 34... Nd7 {[%emt 0:00:24]} (34... Rcc7 $11) 35. Re3 {[%emt 0:00:12]} (35. Bd4 $16) 35... Re5 {[%emt 0:00:10]} 36. h4 {[%emt 0:00:17]} Kf8 {[%emt 0:00:02]} (36... f6 $11) 37. Ref3 $1 $14 {[%emt 0:00:09]} Re2+ {[%emt 0:00:03]} 38. Kf1 {[%emt 0:00:06]} Re7 {[%emt 0:00:02]} 39. Bd4 {[%emt 0:00:01]} Ne5 {[%emt 0:00:03]} ({Black should try} 39... Nc5 $14) 40. Re3 $16 {[%emt 0:00:06]} Re6 {[%emt 0:00:11]} 41. Kg2 {[%emt 0:00:13]} ({Better is} 41. c5 $16 {Hoping for cxd6.} Ke7 42. g5) 41... Ke7 {[%emt 0:00:01]} 42. Kg3 {[%emt 0:00:01]} Rc8 {[%emt 0:00:07] [#]} (42... f6 $14) 43. c5 $1 $18 {[%emt 0:00:06]} Nc6 {[%emt 0:00:02]} 44. Bf6+ {[%emt 0:00:08]} Kd7 {[%emt 0:00:02]} 45. Rxe6 {[%emt 0:00:02]} Kxe6 {[%emt 0:00:02]} 46. cxd6 {[%emt 0:00:03]} Kxd6 $2 {[%emt 0:00:00]} (46... Rg8 {is a better defense.} 47. Kf3 Kxd6) 47. h5 $18 {[%emt 0:00:00]} gxh5 {[%emt 0:00:03]} 48. gxh5 {[%emt 0:00:00]} Ne7 {[%emt 0:00:04]} 49. h6 {[%emt 0:00:07]} Nd5 {[%emt 0:00:01]} 50. Rd4 {[%emt 0:00:12]} (50. Rf3 $142) 50... Ke6 $18 {[%emt 0:00:04]} 51. Bg7 {[%emt 0:00:03]} Ne7 $2 {[%emt 0:00:03][%mdl 8192]} (51... Rc3+ $16 52. Kg4 f5+ 53. Kh5 (53. Kh4 Rc1 $16) 53... Nf6+ 54. Bxf6 Kxf6) 52. Re4+ $18 {[%emt 0:00:04]} Kd6 {[%emt 0:00:01]} 53. Kf4 {[%emt 0:00:02]} ({Worse is} 53. h7 Nf5+ 54. Kf2 Nxg7 $11) 53... Ng6+ {[%emt 0:00:03]} 54. Kg5 {[%emt 0:00:01]} (54. Kf5 $142) 54... Rc1 $18 {[%emt 0:00:00]} 55. Rb4 {[%emt 0:00:21]} Rg1+ {[%emt 0:00:03]} 56. Kf5 $2 {[%emt 0:00:01]} ({White has to play} 56. Rg4 $18 Rh1 57. Rg3) 56... Rf1+ $2 {[%emt 0:00:01][%mdl 8192] [#]} (56... Ne7+ $11 {and Black has nothing to worry.} 57. Kf6 Nd5+ 58. Kxf7 Nxb4 (58... Rf1+ 59. Kg8 $11) 59. Bf8+ Ke5 60. Bxb4 Rf1+ 61. Kg8 Rg1+ 62. Kf8 Rh1 63. Bc3+ Ke6) 57. Kg4 $1 $18 {[%emt 0:00:03]} Rg1+ {[%emt 0:00:01]} 58. Kf3 {[%emt 0:00:01]} Kc6 $2 {[%emt 0:00:05]} (58... Kc7 59. Rb6 Rh1) 59. Rb6+ $18 {[%emt 0:00:01]} Kc7 {[%emt 0:00:01]} 60. Rxg6 {[%emt 0:00:06]} fxg6 {[%emt 0:00:05]} 61. h7 {[%emt 0:00:01]} Rh1 {[%emt 0:00:00]} 62. h8=Q {[%emt 0:00:01]} Rxh8 {[%emt 0:00:00]} 63. Bxh8 {[%emt 0:00:00]} Kc6 {[%emt 0:00:02]} 64. b4 $2 {[%emt 0:00:03]} (64. Bd4 {mates} Kb5 65. Bc3 Kc6 66. Kg4 b6 67. axb6 Kxb6 68. b4 g5 69. Kxg5) 64... b6 $1 $11 {[%emt 0:00:03]} 65. axb6 {[%emt 0:00:03]} Kxb6 {[%emt 0:00:00]} 0-1

[Event "CCT Julius Baer-D3 2024"]
[Site "Online"]
[Date "2024.09.29"]
[Round "4"]
[White "Moussard, Jules"]
[Black "Korobov, Anton"]
[Result "1-0"]
[ECO "B72"]
[WhiteElo "2600"]
[BlackElo "2650"]
[Annotator "RC"]
[PlyCount "153"]
[EventDate "2024.09.25"]
[EventType "swiss"]
[EventCountry "NET"]
[SourceTitle "playchess.com"]
[Source "ChessBase"]
[SourceQuality "1"]
[TimeControl "600+2"]

1. e4 {[%emt 0:00:02]} c5 {[%emt 0:00:04]} 2. Nf3 {[%emt 0:00:02]} d6 {[%emt 0:00:00]} 3. d4 {[%emt 0:00:01]} cxd4 {[%emt 0:00:01]} 4. Nxd4 {[%emt 0:00:00]} Nf6 {[%emt 0:00:00]} 5. Nc3 {[%emt 0:00:00]} a6 {[%emt 0:00:01]} 6. Bd3 {[%emt 0:00:01]} g6 {[%emt 0:00:07]} 7. f3 {[%emt 0:00:01]} Bg7 {[%emt 0:00:01]} 8. Be3 {[%emt 0:00:09]} O-O {[%emt 0:00:02]} 9. Qd2 {[%emt 0:00:02]} Nc6 {[%emt 0:00:01]} 10. O-O-O {[%emt 0:00:02]} Nxd4 {[%emt 0:00:20]} 11. Bxd4 {[%emt 0:00:02]} Be6 {[%emt 0:00:01]} 12. h4 {[%emt 0:00:24]} Rc8 {[%emt 0:00:05]} 13. Kb1 {[%emt 0:00:13]} b5 {[%emt 0:00:11]} 14. h5 {[%emt 0:01:19]} b4 {[%emt 0:00:52]} 15. Ne2 {[%emt 0:00:21]} Qa5 {[%emt 0:00:21]} 16. b3 {[%emt 0:01:15]} Rc5 {[%emt 0:00:27]} 17. hxg6 {[%emt 0:00:49]} hxg6 {[%emt 0:00:03]} 18. g4 {[%emt 0:00:11]} Rfc8 {[%emt 0:00:06]} 19. Nf4 {[%emt 0:01:05]} Bd7 {[%emt 0:00:18]} 20. Qh2 {[%emt 0:01:33]} Bb5 {[%emt 0:00:42]} 21. Rd2 {[%emt 0:00:20]} Bxd3 {[%emt 0:00:57]} 22. Nxd3 {[%emt 0:00:03]} R5c6 {[%emt 0:00:29]} 23. Bb2 {[%emt 0:00:20]} e5 {[%emt 0:00:38]} 24. Qe2 {[%emt 0:00:23]} Qb5 {[%emt 0:00:04]} 25. Nc1 {[%emt 0:00:11]} Qxe2 {[%emt 0:00:20]} 26. Nxe2 {[%emt 0:00:00]} Ne8 {[%emt 0:00:10]} 27. a3 {[%emt 0:00:02]} a5 {[%emt 0:00:07]} 28. Nc1 {[%emt 0:00:05]} bxa3 {[%emt 0:00:14]} 29. Bxa3 {[%emt 0:00:02]} a4 {[%emt 0:00:15]} 30. Rhh2 {[%emt 0:00:22]} Rc3 {[%emt 0:00:21]} 31. Rdf2 {[%emt 0:00:33]} axb3 {[%emt 0:00:26]} 32. Nxb3 {[%emt 0:00:02]} Bf6 {[%emt 0:00:33]} 33. Bb2 {[%emt 0:00:02]} R3c6 {[%emt 0:00:12]} 34. Rd2 {[%emt 0:00:01]} Nc7 {[%emt 0:00:03]} 35. f4 {[%emt 0:00:35]} Ne6 {[%emt 0:00:06]} 36. fxe5 {[%emt 0:00:03]} Bxe5 {[%emt 0:00:06]} 37. Rhe2 {[%emt 0:00:11]} Ng5 {[%emt 0:00:05]} 38. Rd5 {[%emt 0:00:06]} Nf3 {[%emt 0:00:12]} 39. Rf2 {[%emt 0:00:10]} Bxb2 {[%emt 0:00:06]} 40. Kxb2 {[%emt 0:00:00]} Ne5 {[%emt 0:00:10]} 41. g5 {[%emt 0:00:01]} Nc4+ {[%emt 0:00:08]} 42. Kc1 {[%emt 0:00:01]} Ne3 {[%emt 0:00:01]} 43. Rdd2 {[%emt 0:00:06]} Rc3 {[%emt 0:00:06]} 44. Kb2 {[%emt 0:00:04]} R3c6 {[%emt 0:00:10]} 45. Kc1 {[%emt 0:00:01]} Re8 {[%emt 0:00:11]} 46. Rd3 {[%emt 0:00:02]} Nc4 {[%emt 0:00:19]} 47. Rh3 {[%emt 0:00:01]} Rxe4 {[%emt 0:00:06]} 48. Rf1 {[%emt 0:00:03]} Rg4 {[%emt 0:00:04]} 49. Rfh1 {[%emt 0:00:04]} Rxg5 {[%emt 0:00:01]} 50. Rh8+ {[%emt 0:00:01]} Kg7 {[%emt 0:00:01]} 51. R8h7+ {[%emt 0:00:02]} Kf8 {[%emt 0:00:01]} 52. Rh8+ {[%emt 0:00:01]} Ke7 {[%emt 0:00:02]} 53. Ra8 {[%emt 0:00:06]} Ne5 {[%emt 0:00:06]} 54. Ra7+ {[%emt 0:00:03]} Kf8 {[%emt 0:00:07]} 55. Nd4 {[%emt 0:00:01]} Kg8 {[%emt 0:00:42]} 56. Nxc6 {[%emt 0:00:07]} Nxc6 {[%emt 0:00:00]} 57. Rd7 {[%emt 0:00:02]} d5 {[%emt 0:00:03]} 58. Rf1 {[%emt 0:00:04]} Ne5 {[%emt 0:00:15]} 59. Rxd5 {[%emt 0:00:00]} Kg7 {[%emt 0:00:00]} 60. c4 {[%emt 0:00:02]} f6 {[%emt 0:00:01]} 61. c5 {[%emt 0:00:02]} Rg4 {[%emt 0:00:02]} 62. Kc2 {[%emt 0:00:03]} g5 {[%emt 0:00:02]} 63. Kb3 {[%emt 0:00:01]} Rg3+ {[%emt 0:00:04]} 64. Kb4 {[%emt 0:00:02]} Rg2 {[%emt 0:00:01]} 65. Rc1 {[%emt 0:00:02]} Rb2+ {[%emt 0:00:04]} 66. Ka3 {[%emt 0:00:01]} Rb7 {[%emt 0:00:01]} 67. Ka4 {[%emt 0:00:02]} g4 {[%emt 0:00:01]} 68. Ka5 {[%emt 0:00:01]} Kg6 {[%emt 0:00:02]} 69. c6 {[%emt 0:00:01]} Rc7 {[%emt 0:00:14]} 70. Kb6 {[%emt 0:00:00]} Rxc6+ {[%emt 0:00:00]} 71. Rxc6 {[%emt 0:00:00]} Nxc6 {[%emt 0:00:01]} 72. Kxc6 {[%emt 0:00:01]} f5 {[%emt 0:00:00]} 73. Rd8 {[%emt 0:00:01]} f4 {[%emt 0:00:02]} 74. Kd5 {[%emt 0:00:00]} Kf5 {[%emt 0:00:01]} 75. Rf8+ {[%emt 0:00:02]} Kg5 {[%emt 0:00:01]} 76. Ke4 {[%emt 0:00:00]} f3 {[%emt 0:00:00]} 77. Ke3 {[%emt 0:00:01]} 1-0